Cogmind - Beta 11 X8 @@@ ROGUE MODE // 2021.11.03 @ 15:29:18 Player: leiavoia Result: Destroyed by H-61 Shepherd with Heavy Assault Cannon Performance ------------- Evolutions (2) 1000 Regions Visited (6) 1200 Robots Destroyed (28) 140 Value Destroyed (858) 858 Prototype IDs (1) 20 Alien Tech Used (0) 0 Bonus (0) 0 TOTAL SCORE: 3218 Bonus ------- None Cogmind --------- Core Integrity 0/550 Matter 290/300 Energy 96/100 System Corruption 0% Temperature Cool (0) Movement Core (50) Location -8/Materials Parts ------- > --- POWER (1) -------- (None) > --- PROPULSION (3) --- (None) > --- UTILITY (4) ------ (None) > --- WEAPON (3) ------- (None) > --- INVENTORY (5) ---- High-capacity Storage Unit High-capacity Matter Pod (200) Improved Terrain Scanner Light Armor Plating High-powered Tractor Beam Peak State ------------ > --- POWER ------------ Improved Ion Engine > --- PROPULSION ------- Improved Treads Wheel > --- UTILITY ---------- High-capacity Storage Unit Signal Interpreter Hardened Light Armor Plating > --- WEAPON ----------- Small Laser Light Assault Rifle Light Cannon > --- INVENTORY -------- Ion Engine Reinforced Deuterium Engine Fission Core Light Treads Light Treads Light Treads Light Treads Aluminum Leg High-capacity Storage Unit High-capacity Matter Pod Visual Processing Unit Sensor Array Sensor Array Improved Terrain Scanner Terrain Scan Processor Light Armor Plating Hardened Light Armor Plating Hardened Light Armor Plating High-powered Tractor Beam [Rating: 15] Favorites ----------- Power Improved Ion Engine Engine Improved Ion Engine Propulsion Light Treads Treads Light Treads Leg Aluminum Leg Wheel Compact Wheel Utility Signal Interpreter Device Sensor Array Storage High-capacity Storage Unit Processor Signal Interpreter Protection Hardened Light Armor Plating Weapon Light Assault Rifle Energy Gun Small Laser Ballistic Gun Light Assault Rifle Ballistic Cannon Light Cannon Launcher Grenade Launcher Build | -11 -10 -9 -9 -9 -8 -8 ------- Run | Scr Mat Mat Min Exi Min Mat Slots Evolved 4 | . . 2 . . . 2 Power . | . . . . . . . Propulsion 1 | . . . . . . 1 Utility 2 | . . 1 . . . 1 Weapon 1 | . . 1 . . . . Parts Attached 32 | 4 4 7 . 1 6 10 Power 4 | . . 3 . . . 1 Engine 4 | . . 3 . . . 1 Core . | . . . . . . . Reactor . | . . . . . . . Propulsion 15 | 2 2 . . 1 4 6 Treads 7 | . 1 . . . 3 3 Leg 1 | . . . . . . 1 Wheel 7 | 2 1 . . 1 1 2 Hover . | . . . . . . . Flight . | . . . . . . . Utility 9 | 1 1 3 . . 1 3 Device 3 | . 1 1 . . . 1 Storage 1 | . . 1 . . . . Processor 3 | 1 . 1 . . . 1 Hackware . | . . . . . . . Protection 2 | . . . . . 1 1 Artifact . | . . . . . . . Weapon 4 | 1 1 1 . . 1 . Energy Gun 1 | . . . . . 1 . Energy Cannon . | . . . . . . . Ballistic Gun 1 | 1 . . . . . . Ballistic Cannon 1 | . 1 . . . . . Launcher 1 | . . 1 . . . . Special Weapon . | . . . . . . . Impact Weapon . | . . . . . . . Slashing Weapon . | . . . . . . . Piercing Weapon . | . . . . . . . Special Melee Weapon . | . . . . . . . Unidentified Prototypes 1 | . . 1 . . . . Parts Lost 18 | . . 1 . . 8 9 Power 3 | . . 1 . . 1 1 Propulsion 8 | . . . . . 2 6 Utility 3 | . . . . . 1 2 Weapon 4 | . . . . . 4 . Highest Loss Streak 5 | . . 1 . . 4 5 Average Slot Usage (%) 89 | . 100 98 100 100 87 55 Engine 10 | . 14 10 11 11 9 5 Treads 8 | . 2 . . . 12 14 Wheel 14 | . 25 22 22 22 9 5 Device 4 | . 4 10 11 11 . 7 Storage 11 | . 14 11 11 11 11 9 Processor 10 | . 9 11 11 11 11 9 Protection 5 | . . . . . 9 . Energy Gun 5 | . 7 . . . 9 . Ballistic Gun 9 | . 14 11 11 11 9 . Ballistic Cannon 6 | . 7 11 11 11 4 . Launcher 3 | . . 11 11 11 . . Naked Turns 4 | . . . . . . 4 Heaviest Build 57 | 11 13 55 55 55 57 49 Greatest Support 43 | 26 26 26 26 26 43 20 Greatest Overweight (x) 3 | 1 . 2 2 2 2 3 Average Overweight (x) 1 | . . . 2 2 1 2 Largest Inventory Capacity 20 | 8 8 20 20 20 20 20 Average Capacity 17 | 8 8 15 20 20 20 19 Most Carried 20 | 6 8 19 20 20 20 18 Average Carried 16 | 4 7 11 19 20 18 13 Final Capacity 20 | 8 8 20 20 20 20 5 Final Carried 20 | 5 8 19 20 20 19 5 Class Distribution -------------------- 41% | Mutant 27% | Scavenger-Mutant 15% | Scavenger-Tank 15% | Skirmisher Dominant Class ---------------- Mutant | -10/Materials Skirmisher | -9/Materials Mutant | -9/Mines Mutant | -9/Exiles Scavenger-Mutant | -8/Mines Mutant | -8/Materials Resources | -11 -10 -9 -9 -9 -8 -8 ----------- Run | Scr Mat Mat Min Exi Min Mat Matter Collected 985 | 243 62 390 44 . 246 . Remotely . | . . . . . . . Salvage Created 857 | 79 150 300 71 . 257 . Parts 53 | 4 12 26 3 . 8 . Haulers Intercepted 1 | . . 1 . . . . Recyclers Shooed 1 | 1 . . . . . . Parts Field Recycled . | . . . . . . . Retrieved Matter . | . . . . . . . Parts Self-Destructed . | . . . . . . . Prevented . | . . . . . . . Kills | -11 -10 -9 -9 -9 -8 -8 ------- Run | Scr Mat Mat Min Exi Min Mat Combat Hostiles Destroyed 22 | . 3 7 3 . 9 . Guns 4 | . . 2 . . 2 . Cannons 8 | . 3 2 1 . 2 . AOE 10 | . . 3 2 . 5 . Classes Destroyed 9 | 2 2 3 . . 2 . Tunneler 2 | 1 . 1 . . . . Hauler 1 | . . 1 . . . . Recycler 1 | 1 . . . . . . Watcher 2 | . 1 1 . . . . Swarmer 3 | . . . . . 3 . Grunt 15 | . 3 4 3 . 5 . Brawler 1 | . . . . . 1 . Duelist 1 | . . 1 . . . . Sentry 2 | . . 2 . . . . Best Kill Streak 9 | 2 4 9 3 . 3 . Combat Bots Only 7 | . 3 7 3 . 3 . Max Kills in Single Turn 3 | 1 1 3 1 . 2 . Gunslinging . | . . . . . . . Exploded 2 | . . 1 1 . 2 . Melee . | . . . . . . . Uniques/NPCs Destroyed . | . . . . . . . Combat | -11 -10 -9 -9 -9 -8 -8 -------- Run | Scr Mat Mat Min Exi Min Mat Damage Taken 2548 | . 66 173 108 . 1025 1176 Core 796 | . . 50 10 . 171 565 Absorbed by Shields . | . . . . . . . Core Remaining (%) 80 | 100 100 . . . 42 . Volleys Fired 54 | 3 6 15 3 . 27 . Largest 3 | 2 2 3 3 . 3 . Hottest 95 | 70 55 85 85 . 95 . Shots Fired 119 | 6 12 36 8 . 57 . Gun 66 | 6 6 15 3 . 36 . Cannon 40 | . 6 15 3 . 16 . Launcher 13 | . . 6 2 . 5 . Special . | . . . . . . . Kinetic 91 | 3 12 30 6 . 40 . Thermal 15 | 3 . . . . 12 . Explosive 13 | . . 6 2 . 5 . Electromagnetic . | . . . . . . . Robot Hit Streak 8 | 5 4 8 3 . 8 . Robot Miss Streak 2 | . 2 2 2 . 2 . Penetration Max . | . . . . . . . Secondary Targets . | . . . . . . . Shots Hit Robots 74 | 5 5 21 5 . 38 . Core Hits 55 | 3 4 17 4 . 26 1 Critical Kills . | . . . . . . . Critical Parts Destroyed . | . . . . . . . Critical Strikes 2 | . 1 1 . . . . Blast 2 | . 1 1 . . . . Melee Attacks . | . . . . . . . Impact . | . . . . . . . Slashing . | . . . . . . . Piercing . | . . . . . . . Sneak Attacks . | . . . . . . . Combat Hostiles . | . . . . . . . Follow-up Attacks . | . . . . . . . Damage Inflicted 1783 | 53 76 564 260 . 806 24 Guns 358 | 53 7 67 13 . 218 . Cannons 486 | . 69 189 35 . 193 . Explosions 870 | . . 308 212 . 350 . Melee . | . . . . . . . Ramming 69 | . . . . . 45 24 Kinetic 720 | 16 76 256 48 . 324 . Thermal 124 | 37 . . . . 87 . Explosive 870 | . . 308 212 . 350 . Electromagnetic . | . . . . . . . Impact . | . . . . . . . Slashing . | . . . . . . . Piercing . | . . . . . . . Highest Corruption . | . . . . . . . Average Corruption . | . . . . . . . Corruption Purged . | . . . . . . . Overload Shots . | . . . . . . . Overflow Damage 41 | . . . . . 41 . Projectiles . | . . . . . . . Explosions 41 | . . . . . 41 . Melee . | . . . . . . . Knockbacks 8 | . . 3 . . 5 . Impact 2 | . . . . . 2 . Kinetic 5 | . . 2 . . 3 . Secondary 1 | . . 1 . . . . Self-Inflicted Damage 85 | . . . 65 . 20 . Shots 4 | . . . 2 . 2 . Rammed 32 | . . . . . 16 16 Targets Rammed 32 | . . . . . 16 16 Kicked . | . . . . . . . Crushed . | . . . . . . . Highest Temperature 406 | 40 26 107 48 . 406 . Average Temperature 110 | 21 13 37 24 . 167 . Received Heat Transfer 990 | . 36 93 24 . 585 252 Effects 2 | . . . . . 2 . Matter Decay 1 | . . . . . 1 . Short Circuit 1 | . . . . . 1 . Siege Activations . | . . . . . . . Robots Corrupted . | . . . . . . . Combat Hostiles . | . . . . . . . Parts Fried . | . . . . . . . Impact Corruptions . | . . . . . . . Robots Melted . | . . . . . . . Combat Hostiles . | . . . . . . . Parts Melted . | . . . . . . . Heat Transferred 311 | 111 . . . . 200 . Parts Sabotaged . | . . . . . . . Parts Stolen . | . . . . . . . Parts Stripped . | . . . . . . . Power Chain Reactions . | . . . . . . . Missiles Intercepted . | . . . . . . . Alert | -11 -10 -9 -9 -9 -8 -8 ------- Run | Scr Mat Mat Min Exi Min Mat Peak Influence 343 | 10 105 343 218 . 187 32 Initial 133 | . 6 44 133 . . 17 Average 91 | 7 43 174 216 . 67 6 Maximum Alert Level 1 | . . 1 1 . . . Low Security (%) 83 | 100 100 56 4 . 100 100 Level 1 16 | . . 44 95 . . . Level 2 . | . . . . . . . Level 3 . | . . . . . . . Level 4 . | . . . . . . . Level 5 . | . . . . . . . High Security . | . . . . . . . Max Security . | . . . . . . . Squads Dispatched 3 | . 1 1 . . . 1 Investigation 1 | . 1 . . . . . Extermination . | . . . . . . . Reinforcement 2 | . . 1 . . . 1 Assault . | . . . . . . . Garrison . | . . . . . . . Intercept . | . . . . . . . Construction Impeded . | . . . . . . . Haulers Reinforced . | . . . . . . . Active Scanning Responses . | . . . . . . . Cargo Convoy Interrupts . | . . . . . . . Stealth | -11 -10 -9 -9 -9 -8 -8 --------- Run | Scr Mat Mat Min Exi Min Mat Distress Signals 2 | . 1 1 . . . . Communications Jammed . | . . . . . . . Distress Signals . | . . . . . . . Times Spotted 41 | . 9 14 2 . 12 4 Peak Tracking Total 6 | . 6 6 2 . 3 4 Tactical Retreats 4 | . . 1 . . 3 . Traps | -11 -10 -9 -9 -9 -8 -8 ------- Run | Scr Mat Mat Min Exi Min Mat Traps Triggered 1 | . 1 . . . . . Indirectly . | . . . . . . . Trap Hack Attempts . | . . . . . . . Triggered . | . . . . . . . Disarmed . | . . . . . . . Reprogrammed . | . . . . . . . Reused . | . . . . . . . Traps Extracted . | . . . . . . . Installed 4 | . . . 4 . . . Triggered . | . . . . . . . Exploded 2 | . . . . . 2 . Machines | -11 -10 -9 -9 -9 -8 -8 ---------- Run | Scr Mat Mat Min Exi Min Mat Machines Disabled 1 | . . 1 . . . . Max in Single Turn 1 | . . 1 . . . . Machines Sabotaged . | . . . . . . . Garrisons Compromised . | . . . . . . . Overloaded Fab Kills . | . . . . . . . Hacking | -11 -10 -9 -9 -9 -8 -8 --------- Run | Scr Mat Mat Min Exi Min Mat Machines Accessed 4 | . 2 2 . . . . Terminals 4 | . 2 2 . . . . Fabricators . | . . . . . . . Repair Stations . | . . . . . . . Recycling Units . | . . . . . . . Scanalyzers . | . . . . . . . Garrison Access . | . . . . . . . Total Hacks 7 | . 4 3 . . . . Successful 2 | . 2 . . . . . Failed 5 | . 2 3 . . . . Catastrophic 3 | . . 3 . . . . Database Lockouts . | . . . . . . . Manual 1 | . 1 . . . . . Terminals 7 | . 4 3 . . . . Fabricators . | . . . . . . . Repair Stations . | . . . . . . . Recycling Units . | . . . . . . . Scanalyzers . | . . . . . . . Garrison Access . | . . . . . . . Terminal Hacks 1 | . 1 . . . . . Emergency Access Points 1 | . 1 . . . . . Fabricator Hacks . | . . . . . . . Repair Station Hacks . | . . . . . . . Recycling Unit Hacks . | . . . . . . . Scanalyzer . | . . . . . . . Garrison Access Hacks . | . . . . . . . Unauthorized Hacks 1 | . 1 . . . . . Terminals 1 | . 1 . . . . . Disrupt 1 | . 1 . . . . . Fabricators . | . . . . . . . Repair Stations . | . . . . . . . Recycling Units . | . . . . . . . Scanalyzers . | . . . . . . . Garrison Access . | . . . . . . . Data Cores Recovered . | . . . . . . . Used . | . . . . . . . Hacking Detections 4 | . 2 2 . . . . Full Trace Events . | . . . . . . . Feedback Events . | . . . . . . . Feedback Blocked . | . . . . . . . Robot Schematics Acquired . | . . . . . . . Robots Built . | . . . . . . . Authchips . | . . . . . . . Time . | . . . . . . . Total Robot Build Rating . | . . . . . . . Part Schematics Acquired . | . . . . . . . Parts Built . | . . . . . . . Authchips . | . . . . . . . Time . | . . . . . . . Total Part Build Rating . | . . . . . . . Parts Repaired . | . . . . . . . Time . | . . . . . . . Parts Recycled . | . . . . . . . Recycled Matter . | . . . . . . . Retrieved Matter . | . . . . . . . Retrieved Components . | . . . . . . . Parts Scanalyzed . | . . . . . . . Part Schematics Acquired . | . . . . . . . Parts Damaged . | . . . . . . . Bothacking | -11 -10 -9 -9 -9 -8 -8 ------------ Run | Scr Mat Mat Min Exi Min Mat Used RIF Installer . | . . . . . . . Robots Hacked . | . . . . . . . Non-combat . | . . . . . . . Combat . | . . . . . . . Robot Hacks Applied . | . . . . . . . Relay Couplers Released . | . . . . . . . Robots Rewired . | . . . . . . . Allies Hacked . | . . . . . . . Hacks Repelled . | . . . . . . . Allies | -11 -10 -9 -9 -9 -8 -8 -------- Run | Scr Mat Mat Min Exi Min Mat Total Allies . | . . . . . . . Largest Group . | . . . . . . . Highest-Rated Group . | . . . . . . . Highest-Rated Ally . | . . . . . . . Total Orders . | . . . . . . . Ally Attacks . | . . . . . . . Total Damage . | . . . . . . . Kills . | . . . . . . . Allies Corrupted . | . . . . . . . Allies Melted . | . . . . . . . Intel | -11 -10 -9 -9 -9 -8 -8 ------- Run | Scr Mat Mat Min Exi Min Mat Robot Analysis Total . | . . . . . . . Derelict Logs Recovered 2 | . . . 2 . . . Drone Launches . | . . . . . . . Drone Recoveries . | . . . . . . . Exploration | -11 -10 -9 -9 -9 -8 -8 ------------- Run | Scr Mat Mat Min Exi Min Mat Turns Passed 1877 | 39 167 300 173 69 990 139 Spaces Moved 1168 | 25 150 229 133 54 526 51 Core 5 | . . . . . . 5 Treads 201 | . 5 . . . 195 1 Legs . | . . . . . . . Wheels 962 | 25 145 229 133 54 331 45 Hover . | . . . . . . . Flight . | . . . . . . . Fastest Speed 50 | 90 90 90 120 120 120 50 Average Speed 132 | 93 92 101 120 120 164 130 Slowest Speed 320 | 95 160 120 120 120 240 320 Overloaded Moves . | . . . . . . . Propulsion Burnouts . | . . . . . . . Robots Hopped . | . . . . . . . Cave-ins Triggered . | . . . . . . . Exploration Rate (%) 28 | 2 31 31 32 9 91 5 Regions Visited 6 Branch Regions 3 Pre-discovered Areas . | . . . . . . . Known Exits Taken 4 | . . 1 1 1 1 . Unknown Exits Taken 2 | 1 1 . . . . . Scrap Searched 2 | . . . . . 2 . Spaces Dug . | . . . . . . . Terrain Destroyed 101 | . . 40 14 . 47 . Melee . | . . . . . . . Projectile . | . . . . . . . AOE 101 | . . 40 14 . 47 . Terrain Rammed . | . . . . . . . Walls Destroyed . | . . . . . . . Machines Disabled . | . . . . . . . Actions | -11 -10 -9 -9 -9 -8 -8 --------- Run | Scr Mat Mat Min Exi Min Mat Total 1346 | 36 167 267 140 58 590 88 Wait 15 | . . . . . 6 9 Move 1162 | 24 149 228 132 53 525 51 Hop . | . . . . . . . Pick Up 31 | 2 5 13 1 2 6 2 Fast Attach 6 | 1 1 4 . . . . Attach 18 | 3 . 2 . . 4 9 Detach . | . . . . . . . Swap 8 | . 3 1 . 1 2 1 Drop 16 | 3 3 4 . 2 4 . Fire 54 | 3 6 15 3 . 27 . Melee . | . . . . . . . Ram . | . . . . . . . Kick . | . . . . . . . Crush 32 | . . . . . 16 16 Escape Stasis . | . . . . . . . Rewire . | . . . . . . . Trap 4 | . . . 4 . . . Miscellaneous . | . . . . . . . Route ------- -11/Scrapyard -10/Materials -9/Materials -9/Mines -9/Exiles -8/Mines (discovered 2 exits: *Mat x2) -8/Materials History --------- Turn | Location | Event 11 | -11/Scrapyard | Discovered new exit (range 2) 40 | -11/Scrapyard | Entered Materials 204 | -10/Materials | Discovered new exit (range 3) 207 | -10/Materials | Entered another Materials area 207 | -9/Materials | Evolved 2 slots: Utility x1, Weapon x1 408 | -9/Materials | Destroyed 7 combat bots 421 | -9/Materials | Discovered new exit (range 13) 460 | -9/Materials | Identified exit to Mines 507 | -9/Materials | Entered Mines 547 | -9/Mines | Found a hidden stash of uninstalled traps 627 | -9/Mines | Learned Materials terminal intel 638 | -9/Mines | Learned Materials terminal intel 674 | -9/Mines | Deemed a non-threat by the Exiles lab entrance 675 | -9/Mines | Discovered new exit (range 5) 679 | -9/Mines | Identified exit to Exiles 680 | -9/Mines | Entered Exiles 719 | -9/Exiles | Discovered new exit (range 14) 747 | -9/Exiles | Identified exit to Mines 749 | -9/Exiles | Entered Mines 807 | -8/Mines | Discovered new exit (range 7) 831 | -8/Mines | Identified exit to Materials 999 | -8/Mines | Discovered exit to Materials (range 10) 1171 | -8/Mines | Lost 3 parts (2n1w) 1408 | -8/Mines | Build established: Scavenger-Mutant 1671 | -8/Mines | Core integrity fell below 50% 1673 | -8/Mines | Lost 4 parts (1p1u2w) 1739 | -8/Mines | Entered Materials 1739 | -8/Materials | Evolved 2 slots: Propulsion x1, Utility x1 1740 | -8/Materials | Loaded intel: 10 terminal locations 1822 | -8/Materials | Lost 4 parts (3n1u) 1871 | -8/Materials | Core integrity fell below 50% 1873 | -8/Materials | Released all parts (1) 1877 | -8/Materials | Core integrity fell below 20% 1878 | -8/Materials | Destroyed by H-61 Shepherd with Heavy Assault Cannon Last Messages --------------- 01764_ ALERT: Suspicious intruders detected, dispatching Cutter reinforcements to area. 01768_ Acquired Arm. Wheel. 01777_ Slammed into Y-45 Defender. 01779_ Lgt. Treads destroyed. 01782_ Com. Wheel destroyed. 01791_ Lgt. Treads destroyed. 01808_ Slammed into Y-45 Defender. 01823_ Ion Engine destroyed. 01824_ Slammed into Y-45 Defender. 01852_ Aluminum Leg destroyed. 01858_ Critical hit (Burn: +37). 01858_ Lgt. Treads destroyed. 01865_ Sensor Array destroyed. 01868_ Knocked back. 01872_ Signal Interpreter severed. 01872_ Arm. Wheel severed. 01873_ Released Hcp. Storage Unit. 01875_ Acquired Hcp. Storage Unit. 01875_ Armor Integrity Analyzer severed. Map ----- +----------------------------------------------------+ | ???????????????????????????????????????????? | | ???????????????????????????????????????????? | | ???????????????????????????????????????????? | | ???????????????????????????????????????????" | | ???????????????????????????????????????????" | | ???????????????????????????????????????????? | | ???????????????????????????????????????????? | | ???????????????????????????????????????????? | | ???????????????????????????????????????????? | | ???????????????????????????????????????????? | | ???????????????????????????????????????????? | | ???????????????????????????????????????????? | | ???????????????????????????????????????????? | | ???????????????????????????????????????????? | | ???????????????????????????????????????????? | | ???????????????????????????????????????????? | | ???????????????????????????????????????????? | | ???????????????????????????????????????????? | | ???????????????????????????????????????????? | | ???????????????????????????????????????????? | | ???????????????????????????????????????????? | | ???????????????????????????????????????????? | | ???????????????????????????????????????????? | | ????#######???????###???????##?????????????? | | ????# %#########;#### #?????????????? | | ????# !!c ! @ #?????????????? | | ????# !!!!c % H #???????T?????? | | ????# Y % % #?????????????? | | ????# ########;##### #?????????????? | | ????## ##??????###?????#####?????????????? | | ?????# #?????????????????????????????????? | | ?????# #?????????????????????????????????? | | ?????# ##########????????????????????????? | | ?????# # #????????????????????????? | | ?????# # "S #????????????????????????? | | ?????# # """ #????????????????????????? | | ?????# # "" #????????????????????????? | | ?????# + #????????????????????????? | | ?????# # """ #????????????????????????? | | ?????# # """ #????????????????????????? | | ?????# # """ #????????????????????????? | | ?????# # #????????????????????????? | | ?????# ##########????????????????????????? | | ?????# #?????????????????????????????????? | | ?????# #?????????????????????????????????? | | ?????# #?????????????????????????????????? | | ?????# #?????????????????????????????????? | | ?????# #?????????????????????????????????? | | ?????# #?????????????????????????????????? | | ?????# #?????????????????????????????????? | +----------------------------------------------------+ Best States ------------- Heat Dissipation 31 Energy Generation 12 Energy Capacity 265 Matter Stores 300 Matter Capacity 300 Sight Range 16 Robot Scan Range 14 Terrain Scan Density 60 Armor Coverage 150 Evasion (%) 42 Recoil Reduction 2 Item Schematics ----------------- None Robot Schematics ------------------ None Fabricated ------------ Nothing Alien Tech Used ----------------- None Achievements -------------- None Challenges ------------ None Game ------ Seed ShrapnelIntegratedProcessor Manual? 0 Play Time 00:20:17 Cumulative 463.2 hours Start 2021.11.03 @ 15:09:04 End 2021.11.03 @ 15:29:18 Sessions 1 Manual Loads 0 Difficulty Rogue Special Mode None Game No. 90 Rogue 59 Adventurer 31 Explorer 0 Win Type - Total 26 Types 21/0/2/3/0/0/0/0/0 Lore% 67 Gallery% 79 Achievement% 62 Wizard Run 0 Options --------- ASCII 0 Keyboard 0 Movement Arrows Keybinds 0 Fullscreen 1 Font 20/Terminus Map View 66x50 Tactical HUD 1 Map Filters NONE Filters NONE Steam 1 RUN: fa2ca65b-45c1-4f6a-bc6f-320fd185c98c